[Event "Early-Titled-Tuesday-Blitz-February-27-2024"]
[Site "Chess.com"]
[Date "2024.02.27"]
[Round "7"]
[White "nicolasbatista3"]
[Black "Kunalm64"]
[Result "0-1"]
[WhiteElo "2416"]
[BlackElo "2582"]
[TimeControl "180+1"]
[EndTime "9:16:35 PST"]
[Termination "Kunalm64 won by resignation"]

1. d4 {[%clk 0:03:00.9]} 1... Nf6 {[%clk 0:02:59.7]} 2. c4 {[%clk 0:03:00.9]}
2... e6 {[%clk 0:03:00.2]} 3. Nc3 {[%clk 0:03:01.1]} 3... Bb4 {[%clk 0:03:00.8]}
4. f3 {[%clk 0:03:01.2]} 4... d5 {[%clk 0:02:58.9]} 5. a3 {[%clk 0:03:00.9]}
5... Bxc3+ {[%clk 0:02:58.7]} 6. bxc3 {[%clk 0:03:01.8]} 6... c5 {[%clk
0:02:59.1]} 7. cxd5 {[%clk 0:03:01.3]} 7... exd5 {[%clk 0:02:59.5]} 8. e3 {[%clk
0:03:00]} 8... Qc7 {[%clk 0:03:00]} 9. Ne2 {[%clk 0:02:52.4]} 9... O-O {[%clk
0:02:59.4]} 10. g4 {[%clk 0:02:52.2]} 10... Re8 {[%clk 0:02:55.7]} 11. Bg2
{[%clk 0:02:50.5]} 11... Nc6 {[%clk 0:02:31.9]} 12. O-O {[%clk 0:02:48.3]} 12...
Na5 {[%clk 0:02:32]} 13. Nf4 {[%clk 0:02:41.6]} 13... h6 {[%clk 0:02:27.7]} 14.
h4 {[%clk 0:02:06.9]} 14... Nc4 {[%clk 0:02:19.6]} 15. g5 {[%clk 0:02:06.2]}
15... Nxe3 {[%clk 0:02:06]} 16. Bxe3 {[%clk 0:01:53.1]} 16... Rxe3 {[%clk
0:02:06.9]} 17. Nd3 {[%clk 0:01:41.5]} 17... hxg5 {[%clk 0:02:03.2]} 18. hxg5
{[%clk 0:01:42.4]} 18... Nh5 {[%clk 0:01:58.5]} 19. Qd2 {[%clk 0:01:37.1]} 19...
cxd4 {[%clk 0:01:39.8]} 20. cxd4 {[%clk 0:01:35.4]} 20... Re8 {[%clk 0:01:37.9]}
21. Ne5 {[%clk 0:01:29.5]} 21... Bf5 {[%clk 0:01:28.9]} 22. Rac1 {[%clk
0:01:21.7]} 22... Qd6 {[%clk 0:01:28]} 23. Rfe1 {[%clk 0:00:59.5]} 23... Rac8
{[%clk 0:01:08.6]} 24. a4 {[%clk 0:00:38.8]} 24... f6 {[%clk 0:00:33.7]} 25.
gxf6 {[%clk 0:00:38.1]} 25... Qxf6 {[%clk 0:00:31.4]} 26. Rxc8 {[%clk
0:00:28.9]} 26... Rxc8 {[%clk 0:00:30.9]} 27. Qa5 {[%clk 0:00:28.8]} 27... Nf4
{[%clk 0:00:28.8]} 28. Ng4 {[%clk 0:00:20.6]} 28... Qxd4+ {[%clk 0:00:26.5]} 29.
Kh1 {[%clk 0:00:16.1]} 29... Qb6 {[%clk 0:00:12.6]} 30. Qd2 {[%clk 0:00:14.7]}
30... Qd6 {[%clk 0:00:11.1]} 31. Re5 {[%clk 0:00:08]} 31... Nxg2 {[%clk
0:00:09.2]} 32. Rxd5 {[%clk 0:00:06.4]} 32... Qg3 {[%clk 0:00:07]} 33. Qxg2
{[%clk 0:00:06]} 33... Rc1+ {[%clk 0:00:06.2]} 34. Rd1 {[%clk 0:00:03.8]} 34...
Rxd1+ {[%clk 0:00:06.5]} 0-1

[Event "Early-Titled-Tuesday-Blitz-February-27-2024"]
[Site "Chess.com"]
[Date "2024.02.27"]
[Round "7"]
[White "the_blue_pill"]
[Black "Kotlyar_K"]
[Result "0-1"]
[WhiteElo "2411"]
[BlackElo "2576"]
[TimeControl "180+1"]
[EndTime "9:16:35 PST"]
[Termination "Kotlyar_K won on time"]

1. Nf3 {[%clk 0:03:00.9]} 1... Nf6 {[%clk 0:02:54.2]} 2. c4 {[%clk 0:02:58.4]}
2... e6 {[%clk 0:02:51.2]} 3. Nc3 {[%clk 0:02:57.6]} 3... d5 {[%clk 0:02:47.9]}
4. e3 {[%clk 0:02:57.1]} 4... c5 {[%clk 0:02:44.7]} 5. cxd5 {[%clk 0:02:57.3]}
5... exd5 {[%clk 0:02:45.6]} 6. d4 {[%clk 0:02:56.3]} 6... a6 {[%clk 0:02:46.2]}
7. Be2 {[%clk 0:02:53.8]} 7... Nc6 {[%clk 0:02:46.2]} 8. O-O {[%clk 0:02:52.5]}
8... c4 {[%clk 0:02:38.5]} 9. b3 {[%clk 0:02:42.2]} 9... Bb4 {[%clk 0:02:35.1]}
10. Bd2 {[%clk 0:02:41.3]} 10... cxb3 {[%clk 0:02:29.8]} 11. Qxb3 {[%clk
0:02:36.5]} 11... O-O {[%clk 0:02:28.8]} 12. Rfc1 {[%clk 0:02:29.5]} 12... Re8
{[%clk 0:01:57.1]} 13. Ne5 {[%clk 0:01:57.7]} 13... Bd6 {[%clk 0:01:43.6]} 14.
Nxc6 {[%clk 0:01:45.5]} 14... bxc6 {[%clk 0:01:44.5]} 15. Qc2 {[%clk 0:01:33.4]}
15... Ng4 {[%clk 0:01:06.8]} 16. h3 {[%clk 0:01:20.9]} 16... Nxf2 {[%clk
0:00:52.8]} 17. Kxf2 {[%clk 0:01:20.6]} 17... Qh4+ {[%clk 0:00:52.5]} 18. Kf1
{[%clk 0:00:55.6]} 18... Bxh3 {[%clk 0:00:28.3]} 19. Bf3 {[%clk 0:00:41.8]}
19... Be6 {[%clk 0:00:16]} 20. Be1 {[%clk 0:00:35.5]} 20... Qh1+ {[%clk
0:00:15.7]} 21. Ke2 {[%clk 0:00:31.6]} 21... Qh6 {[%clk 0:00:16.3]} 22. Bf2
{[%clk 0:00:27.8]} 22... Qf6 {[%clk 0:00:14.1]} 23. Rh1 {[%clk 0:00:21.8]} 23...
Bf5 {[%clk 0:00:13.9]} 24. Qd2 {[%clk 0:00:18.6]} 24... Rab8 {[%clk 0:00:12.8]}
25. Kf1 {[%clk 0:00:14.1]} 25... Ba3 {[%clk 0:00:08.3]} 26. Na4 {[%clk
0:00:07.3]} 26... Rb4 {[%clk 0:00:07.2]} 27. Qd1 {[%clk 0:00:04.1]} 27... Qg6
{[%clk 0:00:03.5]} 28. Kg1 {[%clk 0:00:02.6]} 28... Be4 {[%clk 0:00:02.7]} 29.
Bxe4 {[%clk 0:00:01.8]} 29... Qxe4 {[%clk 0:00:03.6]} 30. Nc3 {[%clk 0:00:01.5]}
30... Qg6 {[%clk 0:00:03.6]} 0-1

[Event "Early-Titled-Tuesday-Blitz-February-27-2024"]
[Site "Chess.com"]
[Date "2024.02.27"]
[Round "7"]
[White "Polish_fighter3000"]
[Black "Beca95"]
[Result "1-0"]
[WhiteElo "3079"]
[BlackElo "2906"]
[TimeControl "180+1"]
[EndTime "9:16:36 PST"]
[Termination "Polish_fighter3000 won by resignation"]

1. e4 {[%clk 0:03:00.9]} 1... c5 {[%clk 0:03:00.1]} 2. Nf3 {[%clk 0:03:01.5]}
2... d6 {[%clk 0:03:00.6]} 3. d4 {[%clk 0:03:02.1]} 3... cxd4 {[%clk 0:03:01.4]}
4. Nxd4 {[%clk 0:03:03]} 4... Nf6 {[%clk 0:03:01.2]} 5. Nc3 {[%clk 0:03:03.7]}
5... a6 {[%clk 0:03:01.5]} 6. Bg5 {[%clk 0:03:04.4]} 6... Nbd7 {[%clk
0:03:00.5]} 7. Bc4 {[%clk 0:03:03.7]} 7... Qb6 {[%clk 0:03:00.1]} 8. Bb3 {[%clk
0:03:03.8]} 8... e6 {[%clk 0:02:55.8]} 9. Qd2 {[%clk 0:03:03.9]} 9... h6 {[%clk
0:02:49]} 10. Bxf6 {[%clk 0:02:53]} 10... Nxf6 {[%clk 0:02:49.9]} 11. O-O-O
{[%clk 0:02:52.8]} 11... g5 {[%clk 0:02:37.9]} 12. h4 {[%clk 0:02:48.8]} 12...
Rg8 {[%clk 0:02:36.1]} 13. hxg5 {[%clk 0:02:48]} 13... hxg5 {[%clk 0:02:37]} 14.
g3 {[%clk 0:01:10.2]} 14... g4 {[%clk 0:02:20]} 15. Qf4 {[%clk 0:01:09.4]} 15...
Be7 {[%clk 0:02:14.5]} 16. e5 {[%clk 0:01:04.3]} 16... Nd7 {[%clk 0:02:01.9]}
17. Bxe6 {[%clk 0:00:39.5]} 17... fxe6 {[%clk 0:01:30.2]} 18. Nxe6 {[%clk
0:00:40.4]} 18... Nxe5 {[%clk 0:01:26.2]} 19. Nd5 {[%clk 0:00:34.6]} 19... Qa5
{[%clk 0:01:10.8]} 20. Ndc7+ {[%clk 0:00:21.8]} 20... Kd7 {[%clk 0:01:09.2]} 21.
Rh7 {[%clk 0:00:22.2]} 21... Qxa2 {[%clk 0:00:40.3]} 22. Rxd6+ {[%clk
0:00:20.8]} 22... Kxd6 {[%clk 0:00:39]} 23. Qd4+ {[%clk 0:00:18.2]} 23... Kc6
{[%clk 0:00:39.2]} 24. Qxe5 {[%clk 0:00:17.2]} 24... Qa1+ {[%clk 0:00:33.6]} 25.
Kd2 {[%clk 0:00:17]} 25... Bb4+ {[%clk 0:00:34.4]} 26. Kd3 {[%clk 0:00:10.2]}
26... Qf1+ {[%clk 0:00:33.1]} 27. Kd4 {[%clk 0:00:05.9]} 27... Qxf2+ {[%clk
0:00:19.3]} 28. Kc4 {[%clk 0:00:05.4]} 28... Bd6 {[%clk 0:00:11.6]} 29. Nd4+
{[%clk 0:00:03.4]} 29... Qxd4+ {[%clk 0:00:10]} 30. Qxd4 {[%clk 0:00:04.3]}
30... b5+ {[%clk 0:00:09.5]} 31. Kb3 {[%clk 0:00:03.6]} 31... Bxc7 {[%clk
0:00:07.7]} 32. Qe4+ {[%clk 0:00:03.7]} 32... Kb6 {[%clk 0:00:08.1]} 33. Qd4+
{[%clk 0:00:03.4]} 33... Kb7 {[%clk 0:00:08.4]} 34. Qd5+ {[%clk 0:00:03.4]}
34... Kb8 {[%clk 0:00:09]} 35. Qxg8 {[%clk 0:00:03.7]} 35... Ra7 {[%clk
0:00:09.6]} 36. Rh8 {[%clk 0:00:03.9]} 36... Kb7 {[%clk 0:00:10.2]} 37. Qxc8+
{[%clk 0:00:04.4]} 37... Kb6 {[%clk 0:00:11.1]} 38. Rh6+ {[%clk 0:00:04.9]}
38... Ka5 {[%clk 0:00:11.9]} 39. Qf5 {[%clk 0:00:05.2]} 1-0

[Event "Early-Titled-Tuesday-Blitz-February-27-2024"]
[Site "Chess.com"]
[Date "2024.02.27"]
[Round "7"]
[White "Chopper1905"]
[Black "Rud_Makarian"]
[Result "1-0"]
[WhiteElo "2941"]
[BlackElo "3093"]
[TimeControl "180+1"]
[EndTime "9:16:41 PST"]
[Termination "Chopper1905 won by resignation"]

1. d4 {[%clk 0:03:00.9]} 1... Nf6 {[%clk 0:02:59.9]} 2. c4 {[%clk 0:03:01.1]}
2... e6 {[%clk 0:03:00.2]} 3. Nf3 {[%clk 0:03:01.3]} 3... d5 {[%clk 0:03:00.9]}
4. Nc3 {[%clk 0:03:01.8]} 4... Be7 {[%clk 0:03:00.7]} 5. Bf4 {[%clk 0:03:01]}
5... O-O {[%clk 0:03:01]} 6. e3 {[%clk 0:03:01.6]} 6... Nbd7 {[%clk 0:03:00.6]}
7. c5 {[%clk 0:02:55.2]} 7... Ne4 {[%clk 0:03:00.6]} 8. Rc1 {[%clk 0:02:54.4]}
8... f5 {[%clk 0:02:57.9]} 9. h3 {[%clk 0:02:45.7]} 9... c6 {[%clk 0:02:56.4]}
10. Be2 {[%clk 0:02:40.1]} 10... b6 {[%clk 0:02:48.1]} 11. O-O {[%clk
0:02:39.9]} 11... bxc5 {[%clk 0:02:46.7]} 12. dxc5 {[%clk 0:02:40.8]} 12... Bf6
{[%clk 0:02:37.9]} 13. Nd4 {[%clk 0:02:31.4]} 13... Ndxc5 {[%clk 0:02:13.3]} 14.
Nxe4 {[%clk 0:02:07.3]} 14... Nxe4 {[%clk 0:02:14.2]} 15. Nxc6 {[%clk
0:02:04.8]} 15... Qb6 {[%clk 0:02:12.8]} 16. Rc2 {[%clk 0:00:33.9]} 16... Bd7
{[%clk 0:01:45.2]} 17. Ne5 {[%clk 0:00:32.2]} 17... Ba4 {[%clk 0:01:45.4]} 18.
b3 {[%clk 0:00:32.3]} 18... Bb5 {[%clk 0:01:46]} 19. Bxb5 {[%clk 0:00:22.4]}
19... Qxb5 {[%clk 0:01:46.9]} 20. f3 {[%clk 0:00:23.1]} 20... Nd6 {[%clk
0:01:31.8]} 21. Qc1 {[%clk 0:00:18.8]} 21... Nf7 {[%clk 0:00:46.3]} 22. Rc5
{[%clk 0:00:18.6]} 22... Qa6 {[%clk 0:00:41]} 23. Nd7 {[%clk 0:00:18.4]} 23...
Rfc8 {[%clk 0:00:36]} 24. Nxf6+ {[%clk 0:00:16]} 24... gxf6 {[%clk 0:00:36.9]}
25. Bc7 {[%clk 0:00:16.6]} 25... Qxa2 {[%clk 0:00:34.1]} 26. Qc3 {[%clk
0:00:16.3]} 26... Kg7 {[%clk 0:00:31.2]} 27. Rc1 {[%clk 0:00:10.5]} 27... Qa6
{[%clk 0:00:23.1]} 28. Rc6 {[%clk 0:00:10.7]} 28... Rxc7 {[%clk 0:00:09.5]} 29.
Rxc7 {[%clk 0:00:11.3]} 29... Qd6 {[%clk 0:00:06.6]} 30. Rc6 {[%clk 0:00:09.1]}
30... Qd7 {[%clk 0:00:05.9]} 31. Qe1 {[%clk 0:00:09.4]} 31... Kh8 {[%clk
0:00:04.6]} 32. Qh4 {[%clk 0:00:09.7]} 32... Ng5 {[%clk 0:00:04.6]} 33. Qh6
{[%clk 0:00:08.7]} 33... Qf7 {[%clk 0:00:04.3]} 34. Rc8+ {[%clk 0:00:08]} 1-0

[Event "Early-Titled-Tuesday-Blitz-February-27-2024"]
[Site "Chess.com"]
[Date "2024.02.27"]
[Round "7"]
[White "Hananmo"]
[Black "Grandmaster1369"]
[Result "0-1"]
[WhiteElo "2523"]
[BlackElo "2767"]
[TimeControl "180+1"]
[EndTime "9:16:41 PST"]
[Termination "Grandmaster1369 won by resignation"]

1. g3 {[%clk 0:03:00.2]} 1... c5 {[%clk 0:02:55.8]} 2. Bg2 {[%clk 0:03:01.1]}
2... g6 {[%clk 0:02:55.7]} 3. Nf3 {[%clk 0:03:00.8]} 3... Bg7 {[%clk 0:02:56.2]}
4. O-O {[%clk 0:03:01]} 4... Nc6 {[%clk 0:02:56.3]} 5. d3 {[%clk 0:03:01.5]}
5... d5 {[%clk 0:02:55.3]} 6. Nc3 {[%clk 0:03:02]} 6... Nf6 {[%clk 0:02:54.6]}
7. e4 {[%clk 0:03:02.2]} 7... d4 {[%clk 0:02:51.2]} 8. Ne2 {[%clk 0:03:01.5]}
8... e5 {[%clk 0:02:47.5]} 9. Nd2 {[%clk 0:02:58.4]} 9... O-O {[%clk 0:02:45.8]}
10. f4 {[%clk 0:02:57.2]} 10... Ng4 {[%clk 0:02:32.5]} 11. Nc4 {[%clk
0:02:52.2]} 11... b5 {[%clk 0:02:13.1]} 12. Nxe5 {[%clk 0:02:51]} 12... Ncxe5
{[%clk 0:02:09.3]} 13. fxe5 {[%clk 0:02:51.9]} 13... Bxe5 {[%clk 0:02:04]} 14.
Nf4 {[%clk 0:02:49.9]} 14... Ne3 {[%clk 0:02:00.1]} 15. Bxe3 {[%clk 0:02:47.5]}
15... dxe3 {[%clk 0:02:01]} 16. c3 {[%clk 0:02:41.2]} 16... b4 {[%clk
0:02:01.3]} 17. Rc1 {[%clk 0:02:25.5]} 17... bxc3 {[%clk 0:02:01.2]} 18. bxc3
{[%clk 0:02:26.4]} 18... Rb8 {[%clk 0:01:24.2]} 19. Nd5 {[%clk 0:02:21.4]} 19...
Rb2 {[%clk 0:01:20.6]} 20. Nxe3 {[%clk 0:02:17.7]} 20... Rxa2 {[%clk 0:01:02.7]}
21. Nd5 {[%clk 0:02:06.2]} 21... Qg5 {[%clk 0:00:57.8]} 22. Rc2 {[%clk
0:01:46.3]} 22... Rxc2 {[%clk 0:00:51.5]} 23. Qxc2 {[%clk 0:01:47.2]} 23... Be6
{[%clk 0:00:51.9]} 24. Nf4 {[%clk 0:01:32.9]} 24... Bd7 {[%clk 0:00:49.3]} 25.
Kh1 {[%clk 0:01:29.1]} 25... h5 {[%clk 0:00:49.3]} 26. Qf2 {[%clk 0:01:20.4]}
26... Bxc3 {[%clk 0:00:47.8]} 27. Qa2 {[%clk 0:00:53.8]} 27... a5 {[%clk
0:00:36.4]} 28. Nd5 {[%clk 0:00:52.8]} 28... Bd4 {[%clk 0:00:28.3]} 29. Qxa5
{[%clk 0:00:51]} 29... h4 {[%clk 0:00:26.4]} 30. Qc7 {[%clk 0:00:49.8]} 30...
Be6 {[%clk 0:00:25.5]} 31. Qf4 {[%clk 0:00:41.8]} 31... Qxf4 {[%clk 0:00:25.5]}
32. Nxf4 {[%clk 0:00:40.3]} 32... Bd7 {[%clk 0:00:23.8]} 33. gxh4 {[%clk
0:00:38.2]} 33... Kg7 {[%clk 0:00:22.5]} 34. h5 {[%clk 0:00:35.6]} 34... g5
{[%clk 0:00:22.5]} 35. Nd5 {[%clk 0:00:35.6]} 35... Rh8 {[%clk 0:00:22.9]} 36.
Bf3 {[%clk 0:00:18.6]} 36... g4 {[%clk 0:00:20]} 37. Be2 {[%clk 0:00:19]} 37...
Rxh5 {[%clk 0:00:19.6]} 38. Kg2 {[%clk 0:00:19.6]} 38... Be5 {[%clk 0:00:19.1]}
39. Nf4 {[%clk 0:00:20]} 39... Rh4 {[%clk 0:00:19]} 40. Rf2 {[%clk 0:00:14.6]}
40... Kh6 {[%clk 0:00:17.6]} 41. Kg3 {[%clk 0:00:15]} 41... Kg5 {[%clk
0:00:17.6]} 42. h3 {[%clk 0:00:07.8]} 42... Bxf4+ {[%clk 0:00:17.5]} 0-1

[Event "Early-Titled-Tuesday-Blitz-February-27-2024"]
[Site "Chess.com"]
[Date "2024.02.27"]
[Round "7"]
[White "claudyna16"]
[Black "Yeritsyaan"]
[Result "1-0"]
[WhiteElo "2480"]
[BlackElo "2584"]
[TimeControl "180+1"]
[EndTime "9:16:41 PST"]
[Termination "claudyna16 won by resignation"]

1. c4 {[%clk 0:03:00.9]} 1... Nf6 {[%clk 0:02:59.9]} 2. g3 {[%clk 0:03:00.5]}
2... g6 {[%clk 0:02:59.9]} 3. Bg2 {[%clk 0:03:00.2]} 3... Bg7 {[%clk 0:03:00.1]}
4. Nc3 {[%clk 0:02:58.8]} 4... O-O {[%clk 0:03:00.8]} 5. e3 {[%clk 0:02:58]}
5... c5 {[%clk 0:03:01.5]} 6. Nge2 {[%clk 0:02:56.9]} 6... Nc6 {[%clk
0:03:01.6]} 7. O-O {[%clk 0:02:57]} 7... d6 {[%clk 0:03:01]} 8. h3 {[%clk
0:02:52.7]} 8... a6 {[%clk 0:02:59.6]} 9. d4 {[%clk 0:02:52]} 9... cxd4 {[%clk
0:02:57.1]} 10. exd4 {[%clk 0:02:52.2]} 10... e5 {[%clk 0:02:57.6]} 11. d5
{[%clk 0:02:51.8]} 11... Ne7 {[%clk 0:02:55.8]} 12. b3 {[%clk 0:02:51.6]} 12...
Rb8 {[%clk 0:02:55.5]} 13. a4 {[%clk 0:02:50.5]} 13... Nd7 {[%clk 0:02:52.1]}
14. Ba3 {[%clk 0:02:47.4]} 14... Qc7 {[%clk 0:02:51.2]} 15. Ne4 {[%clk
0:02:41.9]} 15... Nf5 {[%clk 0:01:57.7]} 16. g4 {[%clk 0:02:37.9]} 16... Nh4
{[%clk 0:01:53.4]} 17. Bxd6 {[%clk 0:02:36.7]} 17... Qd8 {[%clk 0:01:53.7]} 18.
Bxf8 {[%clk 0:02:21.5]} 18... Bxf8 {[%clk 0:01:48.1]} 19. g5 {[%clk 0:02:15.9]}
19... Nc5 {[%clk 0:01:44.1]} 20. N2g3 {[%clk 0:02:15.6]} 20... Nxe4 {[%clk
0:01:37.4]} 21. Nxe4 {[%clk 0:02:16.5]} 21... Bf5 {[%clk 0:01:33.1]} 22. Nf6+
{[%clk 0:02:07.1]} 22... Kh8 {[%clk 0:01:32]} 23. Qe2 {[%clk 0:01:57.4]} 23...
h6 {[%clk 0:01:10.8]} 24. Qxe5 {[%clk 0:01:49.8]} 24... hxg5 {[%clk 0:01:09.2]}
25. Rae1 {[%clk 0:01:29.5]} 25... Bd6 {[%clk 0:00:44.6]} 26. Qe8+ {[%clk
0:01:23.7]} 26... Qxe8 {[%clk 0:00:37.7]} 27. Rxe8+ {[%clk 0:01:24.6]} 27... Kg7
{[%clk 0:00:35.6]} 28. Rxb8 {[%clk 0:01:20.3]} 28... Bxb8 {[%clk 0:00:36.5]} 29.
Ne8+ {[%clk 0:01:08.4]} 29... Kf8 {[%clk 0:00:36.7]} 30. Re1 {[%clk 0:01:08.7]}
30... Bd7 {[%clk 0:00:32.3]} 31. Nf6 {[%clk 0:01:06.9]} 31... Bf5 {[%clk
0:00:32.3]} 32. Re8+ {[%clk 0:01:03.8]} 32... Kg7 {[%clk 0:00:32.9]} 33. Rxb8
{[%clk 0:01:04.3]} 33... Kxf6 {[%clk 0:00:33.3]} 34. Rxb7 {[%clk 0:01:04.1]}
34... a5 {[%clk 0:00:31.6]} 35. d6 {[%clk 0:01:02.7]} 35... Nxg2 {[%clk
0:00:31.7]} 36. d7 {[%clk 0:01:01.9]} 36... Ke7 {[%clk 0:00:14.6]} 37. Rb8
{[%clk 0:00:58.8]} 37... Bxd7 {[%clk 0:00:11.2]} 38. Kxg2 {[%clk 0:00:59.1]}
38... Kd6 {[%clk 0:00:11.2]} 39. Kg3 {[%clk 0:00:53.2]} 39... Kc5 {[%clk
0:00:10.7]} 40. Rb7 {[%clk 0:00:47.8]} 40... Be8 {[%clk 0:00:09.2]} 41. Re7
{[%clk 0:00:41.4]} 41... Bc6 {[%clk 0:00:06.1]} 42. Rxf7 {[%clk 0:00:37.2]}
42... Kb4 {[%clk 0:00:06.7]} 43. Rf6 {[%clk 0:00:37.5]} 43... Be4 {[%clk
0:00:06.7]} 44. Rb6+ {[%clk 0:00:37.3]} 44... Kc5 {[%clk 0:00:04]} 45. Rb5+
{[%clk 0:00:37.6]} 45... Kc6 {[%clk 0:00:04.6]} 46. Rxa5 {[%clk 0:00:37.9]}
46... Bc2 {[%clk 0:00:05.4]} 47. b4 {[%clk 0:00:37.3]} 47... Bd3 {[%clk
0:00:04.7]} 48. Ra6+ {[%clk 0:00:37.7]} 48... Kb7 {[%clk 0:00:04.9]} 49. b5
{[%clk 0:00:37.5]} 49... Bxc4 {[%clk 0:00:05.3]} 50. Rxg6 {[%clk 0:00:37.2]}
50... Bb3 {[%clk 0:00:06]} 51. a5 {[%clk 0:00:36.9]} 1-0

[Event "Early-Titled-Tuesday-Blitz-February-27-2024"]
[Site "Chess.com"]
[Date "2024.02.27"]
[Round "7"]
[White "Chessdude1987"]
[Black "mightysmasher"]
[Result "1-0"]
[WhiteElo "2375"]
[BlackElo "2539"]
[TimeControl "180+1"]
[EndTime "9:16:41 PST"]
[Termination "Chessdude1987 won on time"]

1. e4 {[%clk 0:03:00.9]} 1... e6 {[%clk 0:02:59.9]} 2. d4 {[%clk 0:02:57.7]}
2... d5 {[%clk 0:03:00.3]} 3. e5 {[%clk 0:02:57.9]} 3... c5 {[%clk 0:02:59.9]}
4. c3 {[%clk 0:02:58.5]} 4... Nc6 {[%clk 0:02:59.4]} 5. Nf3 {[%clk 0:02:59.1]}
5... Qb6 {[%clk 0:02:59]} 6. Bd3 {[%clk 0:02:59.2]} 6... Bd7 {[%clk 0:02:57.8]}
7. O-O {[%clk 0:02:55.8]} 7... cxd4 {[%clk 0:02:57.1]} 8. Re1 {[%clk 0:02:56.1]}
8... Nge7 {[%clk 0:02:54.5]} 9. Ng5 {[%clk 0:02:55.8]} 9... Ng6 {[%clk
0:02:49.9]} 10. Bxg6 {[%clk 0:02:41.5]} 10... hxg6 {[%clk 0:02:39.2]} 11. Qf3
{[%clk 0:02:34.8]} 11... Nd8 {[%clk 0:02:37.9]} 12. Nd2 {[%clk 0:02:34.1]} 12...
Rc8 {[%clk 0:02:29.4]} 13. Nb3 {[%clk 0:02:25.8]} 13... dxc3 {[%clk 0:02:26.3]}
14. bxc3 {[%clk 0:02:20.3]} 14... Qc7 {[%clk 0:02:18.8]} 15. Bd2 {[%clk
0:01:59.8]} 15... Be7 {[%clk 0:02:05.7]} 16. Rac1 {[%clk 0:01:41.7]} 16... Rh5
{[%clk 0:02:03]} 17. Qg3 {[%clk 0:01:38.2]} 17... Nc6 {[%clk 0:01:56.2]} 18. c4
{[%clk 0:01:29.6]} 18... d4 {[%clk 0:01:50]} 19. Nf3 {[%clk 0:01:18.9]} 19... d3
{[%clk 0:01:40.7]} 20. Re3 {[%clk 0:01:10.8]} 20... Rd8 {[%clk 0:01:21.9]} 21.
Rxd3 {[%clk 0:01:08.4]} 21... Nxe5 {[%clk 0:01:20]} 22. Bf4 {[%clk 0:01:00.2]}
22... Nxf3+ {[%clk 0:01:14.3]} 23. Qxf3 {[%clk 0:00:55.5]} 23... Qc6 {[%clk
0:01:11.6]} 24. Qe3 {[%clk 0:00:46.9]} 24... f6 {[%clk 0:00:30.8]} 25. Nd4
{[%clk 0:00:36.5]} 25... Qc8 {[%clk 0:00:29.5]} 26. Bg3 {[%clk 0:00:29.2]} 26...
Kf7 {[%clk 0:00:14.9]} 27. Nb3 {[%clk 0:00:16.8]} 27... e5 {[%clk 0:00:13.4]}
28. Rcd1 {[%clk 0:00:15.1]} 28... Be6 {[%clk 0:00:10.6]} 29. Rxd8 {[%clk
0:00:13.4]} 29... Bxd8 {[%clk 0:00:11.5]} 30. Qxa7 {[%clk 0:00:13.2]} 30... Be7
{[%clk 0:00:09.5]} 31. Na5 {[%clk 0:00:07.9]} 31... Bg4 {[%clk 0:00:06.1]} 32.
Rc1 {[%clk 0:00:05.6]} 32... Be6 {[%clk 0:00:03.7]} 33. c5 {[%clk 0:00:04.3]}
33... Qd8 {[%clk 0:00:03.5]} 34. Nxb7 {[%clk 0:00:02.9]} 34... Qd2 {[%clk
0:00:02.5]} 35. Nd6+ {[%clk 0:00:02.6]} 1-0

[Event "Early-Titled-Tuesday-Blitz-February-27-2024"]
[Site "Chess.com"]
[Date "2024.02.27"]
[Round "7"]
[White "MightyGMpretender"]
[Black "Russian_berezka"]
[Result "0-1"]
[WhiteElo "2769"]
[BlackElo "2596"]
[TimeControl "180+1"]
[EndTime "9:16:42 PST"]
[Termination "Russian_berezka won by checkmate"]

1. Nf3 {[%clk 0:03:00.9]} 1... Nf6 {[%clk 0:02:59.6]} 2. c4 {[%clk 0:02:59.6]}
2... e6 {[%clk 0:02:59.2]} 3. b3 {[%clk 0:02:58.1]} 3... d5 {[%clk 0:02:56.7]}
4. Bb2 {[%clk 0:02:58.2]} 4... c5 {[%clk 0:02:56.6]} 5. e3 {[%clk 0:02:58.2]}
5... Nc6 {[%clk 0:02:53.5]} 6. cxd5 {[%clk 0:02:58.6]} 6... exd5 {[%clk
0:02:54]} 7. Be2 {[%clk 0:02:58.6]} 7... Bd6 {[%clk 0:02:45.1]} 8. O-O {[%clk
0:02:58.1]} 8... O-O {[%clk 0:02:43.1]} 9. d4 {[%clk 0:02:58.8]} 9... cxd4
{[%clk 0:02:38.8]} 10. Nxd4 {[%clk 0:02:58.6]} 10... Re8 {[%clk 0:02:28.2]} 11.
Nd2 {[%clk 0:02:49.5]} 11... a6 {[%clk 0:02:23.5]} 12. Nxc6 {[%clk 0:02:49.5]}
12... bxc6 {[%clk 0:02:23.3]} 13. Nf3 {[%clk 0:02:50.4]} 13... Ne4 {[%clk
0:02:13.9]} 14. Rc1 {[%clk 0:02:48.8]} 14... Bd7 {[%clk 0:02:08.8]} 15. Qd4
{[%clk 0:02:20]} 15... Bf8 {[%clk 0:02:08.3]} 16. Ne5 {[%clk 0:02:04]} 16... a5
{[%clk 0:01:22.6]} 17. Nxc6 {[%clk 0:01:31.2]} 17... Qg5 {[%clk 0:01:22.4]} 18.
Ne5 {[%clk 0:01:30.8]} 18... Bh3 {[%clk 0:01:07.8]} 19. Bf3 {[%clk 0:01:29.2]}
19... Rad8 {[%clk 0:00:48.8]} 20. Kh1 {[%clk 0:01:13.4]} 20... Bf5 {[%clk
0:00:44.7]} 21. g3 {[%clk 0:00:56.9]} 21... Re6 {[%clk 0:00:41.1]} 22. Bg2
{[%clk 0:00:44.7]} 22... Rh6 {[%clk 0:00:36.8]} 23. Rc6 {[%clk 0:00:26]} 23...
Rxc6 {[%clk 0:00:23.3]} 24. Nxc6 {[%clk 0:00:25.9]} 24... Rd6 {[%clk 0:00:24.2]}
25. Ne5 {[%clk 0:00:16.9]} 25... Qh5 {[%clk 0:00:21.7]} 26. g4 {[%clk
0:00:10.6]} 26... Bxg4 {[%clk 0:00:11.2]} 27. Nxg4 {[%clk 0:00:10.7]} 27... Qxg4
{[%clk 0:00:11.5]} 28. f3 {[%clk 0:00:07.3]} 28... Qh4 {[%clk 0:00:07.8]} 29.
fxe4 {[%clk 0:00:06.6]} 29... Rh6 {[%clk 0:00:08.5]} 30. h3 {[%clk 0:00:06.5]}
30... Qg3 {[%clk 0:00:09.2]} 31. Qe5 {[%clk 0:00:03.9]} 31... Qxe3 {[%clk
0:00:05.2]} 32. exd5 {[%clk 0:00:03.6]} 32... Rxh3+ {[%clk 0:00:03.2]} 33. Bxh3
{[%clk 0:00:03.8]} 33... Qxh3+ {[%clk 0:00:04.1]} 34. Qh2 {[%clk 0:00:03.9]}
34... Qxf1+ {[%clk 0:00:04.2]} 35. Qg1 {[%clk 0:00:03.9]} 35... Qf3+ {[%clk
0:00:04.7]} 36. Qg2 {[%clk 0:00:04.3]} 36... Qd1+ {[%clk 0:00:05]} 37. Kh2
{[%clk 0:00:02.2]} 37... Bd6+ {[%clk 0:00:05.6]} 38. Kh3 {[%clk 0:00:02.9]}
38... Qh5# {[%clk 0:00:05.9]} 0-1